bitfinex/quotes_BTCUSD_20230118
["timestamp","ask_amount","ask_price","bid_price","bid_amount"]
[1674054619111,0.01500493,21519.0,21514.0,0.323953]
[1674054619283,0.26071985,21518.0,21514.0,0.48963916]
[1674054619538,0.26071985,21518.0,21515.0,0.317743]
[1674054619796,0.26071985,21518.0,21512.0,0.53896663]
[1674054620055,0.26071985,21518.0,21513.0,0.14]
[1674054620311,0.26071985,21518.0,21512.0,0.59067118]
[1674054620565,0.26071985,21518.0,21512.0,0.46957118]
[1674054620824,0.26071985,21518.0,21514.0,0.142]
[1674054621080,0.26071985,21518.0,21512.0,0.46957118]
[1674054621344,0.26071985,21518.0,21513.0,0.14]
[1674054622376,0.26071985,21518.0,21512.0,0.46957118]
[1674054622632,0.1211,21517.0,21512.0,0.14]
[1674054622938,0.1211,21517.0,21511.0,0.38945173]
[1674054622939,0.263598,21516.0,21511.0,0.38945173]
[1674054623204,0.1211,21517.0,21511.0,0.38945173]
[1674054623448,0.31182595,21517.0,21511.0,0.38945173]
[1674054623704,0.19072595,21517.0,21512.0,0.14]
[1674054623978,1.12011985,21518.0,21511.0,0.38945173]
[1674054624222,0.19072595,21517.0,21511.0,0.52945173]
[1674054624965,0.19072595,21516.0,21511.0,0.14]
[1674054625232,0.19072595,21516.0,21508.0,0.41771324]
[1674054625233,0.15,21514.0,21508.0,0.36524365]
[1674054625494,0.19072595,21513.0,21510.0,0.41853383]
[1674054625745,0.26999,21516.0,21510.0,0.41853383]
[1674054625996,0.31112595,21516.0,21511.0,0.098]
[1674054626278,0.15,21515.0,21510.0,0.41853383]
[1674054626554,0.19072595,21515.0,21510.0,0.41853383]
[1674054626881,0.36091354,21514.0,21510.0,0.41853383]
[1674054627067,0.55163949,21514.0,21510.0,0.44653383]
[1674054627325,0.55163949,21514.0,21510.0,0.41853383]
[1674054627583,0.31182595,21513.0,21507.0,0.49364822]
[1674054627840,0.45432395,21512.0,21507.0,0.49364822]
[1674054628092,0.19072595,21511.0,21507.0,0.49364822]
[1674054628891,0.19072595,21511.0,21504.0,0.121]
[1674054629161,0.19072595,21511.0,21501.0,0.4016728]
[1674054629162,0.1211,21508.0,21501.0,0.4016728]
[1674054629427,0.60878123,21507.0,21501.0,0.00625395]
[1674054629716,0.60432395,21506.0,21501.0,0.00625395]
[1674054629946,0.1211,21504.0,21501.0,0.00625395]
[1674054630204,0.19072595,21503.0,21501.0,0.01025395]
[1674054630472,0.263598,21502.0,21501.0,0.01025395]
[1674054631252,0.263598,21502.0,21501.0,0.00625395]
[1674054631512,0.413598,21502.0,21501.0,0.01525395]
[1674054631783,0.263598,21502.0,21501.0,0.00625395]
[1674054632098,0.263598,21502.0,21501.0,0.01525395]
[1674054632291,0.29975434,21503.0,21501.0,0.01525395]
[1674054633055,0.28782797,21502.0,21501.0,0.01525395]
[1674054634093,0.02422997,21502.0,21501.0,0.01525395]
[1674054634359,0.02422997,21502.0,21501.0,0.05504395]
[1674054634672,0.02422997,21502.0,21501.0,0.00625395]
[1674054635126,0.02422997,21502.0,21501.0,0.05504395]
[1674054635917,0.02422997,21502.0,21501.0,0.00625395]
[1674054636185,0.21495592,21502.0,21501.0,0.00625395]
[1674054636424,0.28782797,21502.0,21501.0,0.00625395]
[1674054637197,0.28782797,21502.0,21501.0,0.00606429]
[1674054638266,0.43782797,21502.0,21501.0,0.00606429]
[1674054638573,1.30972613,21502.0,21501.0,0.00606429]
[1674054638779,0.89167085,21502.0,21501.0,0.00606429]
[1674054639033,0.74167085,21502.0,21501.0,0.00606429]
[1674054640075,0.89167085,21502.0,21501.0,0.00606429]
[1674054640345,1.30972613,21502.0,21501.0,0.00606429]
[1674054640600,0.89167085,21502.0,21501.0,0.00606429]
[1674054641397,0.89167085,21502.0,21501.0,0.01606429]
[1674054642474,0.74167085,21502.0,21501.0,0.01606429]
[1674054642667,0.62077085,21502.0,21501.0,0.01606429]
[1674054643169,0.62077085,21502.0,21501.0,0.00606429]
[1674054643423,0.74187085,21502.0,21501.0,0.00606429]
[1674054643685,0.98508586,21502.0,21501.0,0.00606429]
[1674054644212,1.93161491,21502.0,21501.0,0.00606429]
[1674054644470,1.93161491,21502.0,21501.0,0.01606429]
[1674054644752,1.93161491,21502.0,21501.0,0.00606429]
[1674054645065,0.15,21501.0,21499.0,0.00625395]
[1674054645300,0.47361749,21500.0,21499.0,5.395e-05]
[1674054645535,0.15,21499.0,21496.0,0.00600708]
[1674054645793,0.1211,21497.0,21496.0,0.00600708]
[1674054646061,0.384698,21497.0,21496.0,0.00600708]
[1674054647337,0.55182705,21497.0,21496.0,7.08e-06]
[1674054647591,0.68982149,21497.0,21496.0,7.08e-06]
[1674054647846,1.00197551,21497.0,21496.0,7.08e-06]
[1674054648105,2.12151255,21497.0,21496.0,0.01000708]
[1674054648372,1.80935853,21497.0,21496.0,7.08e-06]
[1674054648633,1.88535434,21497.0,21496.0,7.08e-06]
[1674054648902,0.27951111,21496.0,21495.0,0.00422127]
[1674054649193,0.86071986,21496.0,21495.0,2.127e-05]
[1674054649405,0.89171786,21496.0,21495.0,2.127e-05]
[1674054649914,1.07405255,21496.0,21495.0,2.127e-05]
[1674054650163,0.74171786,21496.0,21495.0,2.127e-05]
[1674054650422,0.62061786,21496.0,21495.0,2.127e-05]
[1674054650952,0.77061786,21496.0,21495.0,2.127e-05]
[1674054651210,0.62061786,21496.0,21495.0,2.127e-05]
[1674054651500,0.77402965,21496.0,21495.0,0.01002127]
[1674054651731,0.92402965,21496.0,21495.0,2.127e-05]
[1674054652013,1.04512965,21496.0,21495.0,0.01002127]
[1674054652265,1.74318592,21496.0,21495.0,0.01002127]
[1674054652533,1.33344053,21496.0,21495.0,0.01002127]
[1674054652817,0.85623884,21496.0,21495.0,0.01002127]
[1674054653545,0.85623884,21496.0,21494.0,0.00426278]
[1674054653546,0.15,21495.0,21494.0,0.00426278]
[1674054653806,0.92210781,21495.0,21494.0,0.00426278]
[1674054654056,0.70381176,21495.0,21494.0,0.00426278]
[1674054654572,0.55381176,21495.0,21494.0,0.00426278]
[1674054654829,0.63181176,21495.0,21494.0,0.00526278]
[1674054655367,0.078,21495.0,21494.0,0.10290278]
[1674054655650,0.078,21495.0,21494.0,0.46676694]
[1674054655899,0.078,21495.0,21494.0,0.39658678]
[1674054656152,0.078,21495.0,21494.0,0.38701578]
[1674054656416,0.078,21495.0,21494.0,0.05405278]
[1674054656970,0.33623288,21496.0,21494.0,0.05305278]
[1674054657198,0.003,21495.0,21494.0,0.07205278]
[1674054657470,0.003,21495.0,21494.0,0.43784294]
[1674054657734,0.28963747,21500.0,21494.0,0.53994294]
[1674054658113,0.003,21496.0,21495.0,0.303768]
[1674054658260,0.003,21496.0,21495.0,0.68591704]
[1674054658514,0.003,21496.0,21495.0,0.80611704]
[1674054658766,0.34679568,21501.0,21495.0,0.92621704]
[1674054659043,0.38389824,21501.0,21497.0,0.1211]
[1674054659300,0.34679568,21501.0,21498.0,0.307581]
[1674054659552,0.02422997,21502.0,21499.0,0.439745]
[1674054659821,0.02422997,21502.0,21500.0,0.321118]
[1674054660124,0.02422997,21502.0,21501.0,0.323172]
[1674054660387,0.02422997,21502.0,21501.0,0.564272]
[1674054660902,0.02422997,21502.0,21501.0,1.03102382]
[1674054661402,0.21995592,21502.0,21501.0,0.82892382]
[1674054661665,0.02922997,21502.0,21501.0,0.50575182]
[1674054662211,0.02922997,21502.0,21501.0,0.82656182]
[1674054662713,0.02422997,21502.0,21501.0,0.90866182]
[1674054662975,0.02922997,21502.0,21501.0,0.94766182]
[1674054663258,0.02422997,21502.0,21497.0,0.6761]
[1674054663521,0.02422997,21502.0,21501.0,0.1204]
[1674054663779,0.02422997,21502.0,21501.0,0.310143]
[1674054664050,0.02922997,21502.0,21501.0,0.591343]
[1674054664324,0.02422997,21502.0,21501.0,0.552343]
[1674054664633,0.02922997,21502.0,21501.0,1.08477899]
[1674054665161,0.02422997,21502.0,21501.0,1.08477899]
[1674054665163,0.02922997,21502.0,21501.0,1.12377899]
[1674054665436,0.02422997,21502.0,21501.0,1.08477899]
[1674054665700,0.38467751,21502.0,21501.0,0.349143]
[1674054666006,0.02422997,21502.0,21501.0,0.310143]
[1674054666264,0.02922997,21502.0,21501.0,0.3922573]
[1674054666525,0.02422997,21502.0,21501.0,0.310143]
[1674054666784,0.02922997,21502.0,21501.0,0.363819]
[1674054667539,0.02922997,21502.0,21501.0,0.96112069]
[1674054667823,0.02922997,21502.0,21501.0,0.95256083]
[1674054668921,0.48881917,21502.0,21501.0,0.35525914]
[1674054669687,0.48881917,21502.0,21501.0,0.03044014]
[1674054670717,0.81238917,21502.0,21501.0,0.03044014]
[1674054671516,0.35279997,21502.0,21501.0,0.03044014]
[1674054671767,0.96418782,21502.0,21501.0,0.03044014]
[1674054672030,0.95918782,21502.0,21495.0,1.27756741]
[1674054672286,0.87996859,21502.0,21501.0,0.003]
[1674054672553,1.15710799,21502.0,21501.0,0.003]
[1674054672858,0.97675722,21502.0,21501.0,0.003]
[1674054673066,0.97675722,21502.0,21495.0,0.26405786]
[1674054673067,0.91275722,21502.0,21495.0,0.26405786]
[1674054673311,1.00761614,21502.0,21497.0,0.3690759]
[1674054673575,0.77332217,21502.0,21497.0,0.54069349]
[1674054673907,0.68732217,21502.0,21501.0,0.10064]
[1674054674095,0.49659622,21502.0,21501.0,0.22074]
[1674054674865,0.43259622,21502.0,21501.0,0.476861]
[1674054675159,0.43859622,21502.0,21501.0,0.16889]
[1674054675423,0.58259622,21502.0,21501.0,0.17089]
[1674054675668,0.64959622,21502.0,21501.0,0.17089]
[1674054676191,0.64959622,21502.0,21501.0,0.05079]
[1674054676449,0.58259622,21502.0,21501.0,0.04879]
[1674054676716,0.58959622,21502.0,21501.0,0.07279]
[1674054677238,0.58959622,21502.0,21501.0,0.024]
[1674054677239,0.56459622,21502.0,21501.0,0.024]
[1674054677813,0.88949622,21502.0,21501.0,0.024]
[1674054678039,0.88929184,21502.0,21501.0,0.024]
[1674054678295,1.09855206,21502.0,21501.0,0.01951283]
[1674054678551,1.39606927,21502.0,21501.0,0.01951283]
[1674054678812,1.38906927,21502.0,21495.0,0.23524564]
[1674054679091,0.74774939,21501.0,21495.0,0.32494861]
[1674054679318,0.15,21499.0,21495.0,0.32494861]
[1674054679573,0.34072595,21499.0,21495.0,0.23524564]
[1674054679823,0.19072595,21498.0,21495.0,0.23524564]
[1674054680086,0.19072595,21498.0,21495.0,0.23724564]
[1674054680342,0.15,21499.0,21494.0,0.38176949]
[1674054680629,0.19072595,21498.0,21494.0,0.00426278]
[1674054680877,0.51532995,21497.0,21494.0,0.00426278]
[1674054681153,0.380896,21496.0,21494.0,0.00426278]
[1674054681425,0.445704,21495.0,21494.0,0.00426278]
[1674054681730,0.89321356,21495.0,21494.0,0.00426278]
[1674054682004,0.97897922,21495.0,21494.0,0.00926278]
[1674054682262,1.27653493,21495.0,21494.0,0.00426278]
[1674054682530,1.17551713,21495.0,21494.0,0.00626278]
[1674054682788,1.47309635,21495.0,21494.0,0.00426278]
[1674054683048,1.38751839,21495.0,21494.0,0.00626278]
[1674054683835,1.08993917,21495.0,21494.0,0.00626278]
[1674054684792,0.96883917,21495.0,21494.0,0.00626278]
[1674054686608,1.08993917,21495.0,21494.0,0.00626278]
[1674054686869,1.28637978,21495.0,21494.0,0.00626278]
[1674054687374,1.08993917,21495.0,21494.0,0.00626278]
[1674054687637,0.96883917,21495.0,21494.0,0.00626278]
[1674054688153,0.96883917,21495.0,21494.0,0.00565991]
[1674054688660,0.665704,21495.0,21494.0,0.00565991]
[1674054688913,1.10193169,21495.0,21494.0,0.00565991]
[1674054689171,1.37655445,21495.0,21494.0,0.00565991]
[1674054689494,1.15677564,21495.0,21494.0,0.00565991]
[1674054690200,0.394604,21495.0,21494.0,0.05444991]
[1674054690472,0.07,21495.0,21494.0,0.00565991]
[1674054691549,0.38867136,21496.0,21494.0,0.00365991]
[1674054691804,0.063,21495.0,21494.0,0.05544991]
[1674054692590,0.38867136,21496.0,21494.0,0.00365991]
[1674054692841,0.45167136,21496.0,21494.0,0.00665991]
[1674054693110,1.18261169,21499.0,21494.0,0.42803184]
[1674054693388,1.18261169,21499.0,21495.0,0.47416931]
[1674054693662,1.18261169,21499.0,21495.0,0.16332531]
[1674054694688,0.063,21496.0,21495.0,0.16332531]
[1674054694970,0.8301,21499.0,21496.0,0.2548602]
[1674054695215,0.8361,21499.0,21496.0,0.2548602]
[1674054695466,0.15,21498.0,21495.0,0.1481]
[1674054695716,0.19072595,21497.0,21495.0,0.028]
[1674054695988,0.19072595,21497.0,21494.0,0.00465511]
[1674054696264,0.19072595,21497.0,21496.0,0.028]
[1674054696501,0.53756693,21498.0,21496.0,0.028]
[1674054696771,0.32884,21497.0,21496.0,0.028]
[1674054697027,1.09695522,21499.0,21496.0,1.12141616]
[1674054697028,0.006,21499.0,21496.0,1.12141616]
[1674054697534,0.006,21499.0,21497.0,0.430994]
[1674054697536,0.44572228,21500.0,21497.0,0.430994]
[1674054697793,0.006,21498.0,21497.0,0.1211]
[1674054698064,0.44572228,21500.0,21497.0,0.1211]
[1674054698322,0.006,21499.0,21497.0,0.1211]
[1674054698577,0.44572228,21500.0,21497.0,0.1211]
[1674054699331,0.45172228,21500.0,21497.0,0.1491]
[1674054700368,0.006,21500.0,21497.0,0.70283314]
[1674054700639,0.006,21500.0,21499.0,0.1211]
[1674054700899,0.006,21500.0,21499.0,0.431985]
[1674054701137,0.006,21500.0,21497.0,0.1487]
[1674054701385,0.54614112,21500.0,21496.0,0.3964161]
[1674054701629,0.15,21499.0,21496.0,0.3964161]
[1674054701883,0.35541517,21500.0,21496.0,0.3964161]
[1674054702135,0.35541517,21500.0,21497.0,0.445273]
[1674054702395,0.35541517,21500.0,21498.0,0.330552]
[1674054702644,0.35541517,21500.0,21499.0,0.322803]
[1674054702916,0.006,21499.0,21497.0,0.1211]
[1674054703166,0.35541517,21500.0,21497.0,0.1211]
[1674054703424,0.36141517,21500.0,21497.0,0.1491]
[1674054703925,0.36141517,21500.0,21497.0,0.21575161]
[1674054704182,0.36141517,21500.0,21498.0,0.3015]
[1674054704444,0.35541517,21500.0,21499.0,0.343412]
[1674054704698,0.35641517,21500.0,21499.0,0.001]
[1674054704949,0.35541517,21500.0,21499.0,0.04879]
[1674054705204,0.36141517,21500.0,21499.0,0.04879]
[1674054705454,0.04755193,21501.0,21499.0,0.19354416]
[1674054705722,0.04755193,21501.0,21500.0,0.414012]
[1674054706234,0.45279711,21501.0,21500.0,0.121]
[1674054706509,0.60279711,21501.0,21499.0,0.001]
[1674054706773,0.317212,21500.0,21499.0,0.001]
[1674054707039,0.76517181,21500.0,21499.0,0.001]
[1674054707298,1.80497181,21500.0,21499.0,0.001]
[1674054707552,1.357012,21500.0,21494.0,0.00461523]
[1674054707834,0.62445587,21499.0,21494.0,0.00461523]
[1674054708060,0.65158795,21498.0,21494.0,0.00365991]
[1674054708329,0.34072595,21498.0,21494.0,0.00365991]
[1674054708852,0.34072595,21498.0,21494.0,0.17940577]
[1674054708853,0.15,21498.0,21494.0,0.17940577]
[1674054709105,0.15,21498.0,21494.0,0.15140577]
[1674054709377,0.213,21498.0,21494.0,0.18228174]
[1674054709630,0.40372595,21498.0,21494.0,0.15440577]
[1674054709915,0.40372595,21498.0,21494.0,0.00665991]
[1674054710227,0.322456,21497.0,21494.0,0.00665991]
[1674054710435,0.49272431,21497.0,21494.0,0.00665991]
[1674054711196,0.49272431,21497.0,21494.0,0.00365991]
[1674054711452,0.49372431,21497.0,21494.0,0.001]
[1674054711716,0.57299674,21497.0,21494.0,0.001]
[1674054712247,0.463863,21496.0,21494.0,0.001]
[1674054712499,0.15,21496.0,21492.0,0.00625395]
[1674054712813,0.37694219,21495.0,21494.0,0.028]
[1674054713014,0.37694219,21495.0,21492.0,0.00625395]
[1674054713532,0.37694219,21495.0,21494.0,0.001]
[1674054714079,0.37694219,21495.0,21492.0,0.00625395]
[1674054714602,0.335869,21494.0,21492.0,0.00625395]
[1674054714901,0.248531,21493.0,21492.0,0.03425395]
[1674054715449,0.15,21494.0,21492.0,0.00625395]
[1674054715684,0.303315,21493.0,21492.0,0.03425395]
[1674054715934,0.15,21494.0,21492.0,0.00625395]
[1674054716178,0.7820957,21493.0,21492.0,0.03425395]
[1674054716396,0.9320957,21493.0,21492.0,0.03425395]
[1674054717179,0.9260957,21493.0,21492.0,0.00625395]
[1674054717432,0.9890957,21493.0,21492.0,0.00925395]
[1674054720123,0.8034594,21493.0,21492.0,0.00925395]
[1674054720407,1.00306994,21493.0,21492.0,0.00764693]
[1674054720665,1.391771,21493.0,21492.0,0.00764693]
[1674054721189,1.34774377,21493.0,21492.0,0.00764693]
[1674054721440,1.22492261,21493.0,21492.0,0.00701893]
[1674054721691,1.16991815,21493.0,21492.0,0.00701893]
[1674054721948,1.28114878,21493.0,21492.0,0.00701893]
[1674054722468,1.11430057,21493.0,21492.0,0.00701893]
[1674054722732,1.39177082,21493.0,21492.0,0.00701893]
[1674054723027,1.34774577,21493.0,21492.0,0.00701893]
[1674054723248,1.39176887,21493.0,21492.0,0.00701893]
[1674054723785,1.28111928,21493.0,21492.0,0.00701893]
[1674054724568,1.52801645,21493.0,21492.0,0.00701893]
[1674054724822,1.70581783,21493.0,21492.0,0.00701893]
[1674054725074,1.74982577,21493.0,21492.0,0.00701893]
[1674054725350,1.28104944,21493.0,21492.0,0.00701893]
[1674054725633,1.11424576,21493.0,21492.0,0.00701893]
[1674054726149,0.063,21493.0,21492.0,0.00701893]
[1674054726413,0.063,21493.0,21492.0,0.05580893]
[1674054726669,0.063,21493.0,21492.0,0.08605971]
[1674054726928,0.063,21493.0,21492.0,0.40150671]
[1674054727176,0.063,21493.0,21492.0,0.37125593]
[1674054727466,0.063,21493.0,21492.0,0.81102014]
[1674054727684,0.063,21493.0,21492.0,0.93212014]
[1674054728253,0.11117582,21497.0,21492.0,0.92912014]
[1674054728461,0.55713904,21499.0,21495.0,0.1199]
[1674054728711,0.55713904,21499.0,21496.0,0.457548]
[1674054728988,0.44596322,21499.0,21497.0,0.305585]
[1674054729244,0.44596322,21499.0,21496.0,0.1207]
[1674054730026,0.44996322,21499.0,21497.0,0.001]
[1674054730524,0.004,21499.0,21498.0,0.1211]
[1674054730815,0.004,21499.0,21498.0,0.449718]
[1674054731300,0.04755193,21501.0,21498.0,0.428095]
[1674054731526,0.006,21499.0,21498.0,0.1211]
[1674054731777,0.30872775,21501.0,21498.0,0.1211]
[1674054732041,0.058,21499.0,21498.0,0.1241]
[1674054732563,0.19755193,21501.0,21498.0,0.1211]
[1674054732821,0.36672775,21501.0,21498.0,0.1241]
[1674054733079,0.19755193,21501.0,21498.0,0.15281686]
[1674054733345,0.058,21499.0,21498.0,0.15581686]
[1674054734103,0.19755193,21501.0,21498.0,0.46779186]
[1674054734317,0.05155193,21501.0,21498.0,0.41221314]
[1674054734605,0.04755193,21501.0,21498.0,0.41121314]
[1674054734855,0.004,21499.0,21498.0,0.41221314]
[1674054735117,0.04755193,21501.0,21498.0,0.41121314]
[1674054735375,0.05155193,21501.0,21499.0,0.433464]
[1674054735632,0.05155193,21501.0,21500.0,0.440326]
[1674054735884,0.05155193,21501.0,21500.0,0.283426]
[1674054736145,0.04755193,21501.0,21500.0,0.283426]
[1674054736397,0.04755193,21501.0,21499.0,0.1211]
[1674054736652,0.04755193,21501.0,21500.0,0.303109]
[1674054737428,0.05355193,21501.0,21500.0,0.90553751]
[1674054737938,0.04755193,21501.0,21500.0,0.90553751]
[1674054738198,0.05155193,21501.0,21500.0,0.90653751]
[1674054738454,0.04755193,21501.0,21500.0,0.90553751]
[1674054738715,0.05255193,21501.0,21500.0,1.15096751]
[1674054738971,0.05255193,21501.0,21500.0,1.6281692]
[1674054741104,0.05255193,21501.0,21500.0,1.41724069]
[1674054741340,0.05255193,21501.0,21500.0,2.84471265]
[1674054741607,0.05255193,21501.0,21500.0,1.67356445]
[1674054742120,0.05255193,21501.0,21500.0,1.55326445]
[1674054742410,0.04755193,21501.0,21500.0,1.52026445]
[1674054742629,0.04755193,21501.0,21500.0,1.60726445]
[1674054742883,0.04755193,21501.0,21500.0,1.20084069]
[1674054743699,0.04755193,21501.0,21500.0,1.11384069]
[1674054743912,0.04755193,21501.0,21500.0,1.07974069]
[1674054744166,0.04755193,21501.0,21500.0,0.68963169]
[1674054744416,0.04755193,21501.0,21500.0,0.77663169]
[1674054744675,0.04755193,21501.0,21500.0,0.89773169]
[1674054744928,0.04755193,21501.0,21500.0,1.20846269]
[1674054745184,0.04755193,21501.0,21500.0,1.43546733]
[1674054749084,0.04755193,21501.0,21500.0,1.31436733]
[1674054749341,0.04755193,21501.0,21500.0,1.08736269]
[1674054750385,0.04755193,21501.0,21500.0,1.20726269]
[1674054754184,0.04755193,21501.0,21500.0,1.32786269]
[1674054754443,0.04755193,21501.0,21500.0,1.80290172]
[1674054754946,0.04755193,21501.0,21500.0,1.70665823]
[1674054755198,0.04755193,21501.0,21500.0,2.3500058]
[1674054755682,0.16283131,21502.0,21501.0,0.79436621]
[1674054755946,0.16283131,21502.0,21501.0,1.5808547]
[1674054756424,0.01306895,21504.0,21502.0,0.15]
[1674054756681,0.01306895,21504.0,21503.0,1.90562752]
[1674054756935,0.01306895,21504.0,21503.0,1.53002516]
[1674054757187,0.01306895,21504.0,21503.0,1.90733278]
[1674054758228,0.01306895,21504.0,21503.0,1.99833278]
[1674054759025,0.01306895,21504.0,21503.0,2.14000826]
[1674054759231,0.01306895,21504.0,21503.0,1.76270064]
[1674054759752,0.01306895,21504.0,21503.0,1.64055315]
[1674054761009,0.01306895,21504.0,21503.0,1.6875822]
[1674054761258,0.01383578,21506.0,21504.0,0.15697527]
[1674054761509,0.01383578,21506.0,21505.0,1.76916148]
[1674054761758,0.01383578,21506.0,21505.0,2.00658046]
[1674054762009,0.01383578,21506.0,21505.0,1.58309893]
[1674054762267,0.01383578,21506.0,21505.0,1.73309893]
[1674054762521,0.01383578,21506.0,21505.0,1.35724805]
[1674054762795,0.01383578,21506.0,21505.0,1.61191107]
[1674054763027,0.01383578,21506.0,21505.0,1.00521107]
[1674054763307,0.01383578,21506.0,21505.0,0.55416281]
[1674054763549,0.01383578,21506.0,21505.0,1.14109262]
[1674054763802,0.01383578,21506.0,21505.0,0.89844881]
[1674054764548,0.01383578,21506.0,21505.0,1.01954881]
[1674054764813,0.01383578,21506.0,21505.0,0.645619]
[1674054765073,0.01383578,21506.0,21505.0,0.786109]
[1674054765337,0.01383578,21506.0,21505.0,0.878109]
[1674054765572,0.01383578,21506.0,21505.0,0.786109]
[1674054765859,0.01383578,21506.0,21505.0,0.936109]
[1674054766319,0.01383578,21506.0,21505.0,1.02696468]
[1674054766667,0.01383578,21506.0,21505.0,0.788219]
[1674054766836,0.01383578,21506.0,21505.0,1.15531555]
[1674054767084,0.01483578,21506.0,21505.0,1.14160065]
[1674054767594,0.01383578,21506.0,21505.0,1.05660065]
[1674054768103,0.01483578,21506.0,21505.0,1.13360065]
[1674054768360,0.01383578,21506.0,21505.0,1.05660065]
[1674054768906,0.01383578,21506.0,21505.0,0.78600065]
[1674054770762,0.01483578,21506.0,21505.0,0.87100065]
[1674054772894,0.01383578,21506.0,21505.0,0.78600065]
[1674054773156,0.01483578,21506.0,21505.0,0.87100065]
[1674054773408,0.01483578,21506.0,21505.0,0.74990065]
[1674054773689,0.01483578,21506.0,21505.0,0.43838165]
[1674054773960,0.01383578,21506.0,21505.0,0.35338165]
[1674054774218,0.01483578,21506.0,21505.0,0.43838165]
[1674054774700,0.01483578,21506.0,21505.0,0.74935565]
[1674054774702,0.01483578,21506.0,21505.0,0.66435565]
[1674054774957,0.01383578,21506.0,21505.0,0.66435565]
[1674054775214,0.01383578,21506.0,21505.0,0.78545565]
[1674054775739,0.01483578,21506.0,21505.0,0.87045565]
[1674054775995,0.01383578,21506.0,21505.0,0.66435565]
[1674054776265,0.01483578,21506.0,21505.0,0.43838165]
[1674054777277,0.01483578,21506.0,21505.0,0.76205765]
[1674054780148,0.01483578,21506.0,21505.0,0.43838165]
[1674054781551,0.01483578,21506.0,21505.0,0.085]
[1674054782536,0.16483578,21506.0,21505.0,0.085]
[1674054782792,0.60167478,21506.0,21505.0,0.085]
[1674054783051,0.60067478,21506.0,21504.0,0.00697527]
[1674054783310,0.16483578,21506.0,21505.0,0.079]
[1674054783557,0.61100478,21506.0,21504.0,0.00697527]
[1674054783806,0.41523,21505.0,21504.0,0.00697527]
[1674054784061,0.56523,21505.0,21504.0,0.00697527]
[1674054784317,0.56523,21505.0,21504.0,0.03417527]
[1674054784581,0.92576252,21505.0,21504.0,0.02037527]
[1674054784841,0.92576252,21505.0,21504.0,0.01347527]
[1674054785627,0.92576252,21505.0,21501.0,0.0398403]
[1674054785879,0.62370834,21505.0,21504.0,0.024]
[1674054786142,0.95092052,21505.0,21504.0,0.024]
[1674054786656,0.15,21504.0,21501.0,0.0398403]
[1674054786900,0.302911,21503.0,21501.0,0.0868403]
[1674054787161,0.438067,21502.0,21501.0,0.0398403]
[1674054787671,0.438067,21502.0,21501.0,0.03886621]
[1674054787945,0.80493411,21502.0,21501.0,0.03886621]
[1674054788957,0.80493411,21502.0,21501.0,0.06586621]
[1674054789237,0.80493411,21502.0,21501.0,0.03886621]
[1674054789461,0.84393411,21502.0,21501.0,0.04286621]
[1674054791543,0.40586711,21502.0,21501.0,0.04286621]
[1674054792077,0.72236311,21502.0,21501.0,0.04286621]
[1674054792325,0.72023911,21502.0,21501.0,0.04286621]
[1674054793242,0.84133911,21502.0,21501.0,0.04286621]
[1674054793746,0.83633911,21502.0,21501.0,0.04286621]
[1674054795569,0.95743911,21502.0,21501.0,0.04286621]
[1674054796132,0.71523911,21502.0,21501.0,0.05595621]
[1674054798238,0.83633911,21502.0,21501.0,0.05595621]
[1674054799588,0.52196711,21502.0,21501.0,0.05595621]
[1674054799845,0.1601,21502.0,21501.0,0.05595621]
[1674054800631,0.480387,21502.0,21501.0,0.05595621]
[1674054800888,0.1601,21502.0,21501.0,0.05595621]
[1674054801396,0.498812,21502.0,21501.0,0.05595621]
[1674054801649,0.86415158,21502.0,21501.0,0.05595621]
[1674054803196,1.01415158,21502.0,21501.0,0.05595621]
[1674054803713,1.36855158,21502.0,21501.0,0.05595621]
[1674054803968,1.08825158,21502.0,21501.0,0.05595621]
[1674054804736,1.36765158,21502.0,21501.0,0.05595621]
[1674054805219,1.78093422,21502.0,21501.0,0.05595621]
[1674054805459,1.36799464,21502.0,21501.0,0.05595621]
[1674054805716,2.1535442,21502.0,21501.0,0.05595621]
[1674054806223,1.89269153,21502.0,21501.0,0.05195621]
[1674054806480,2.08348691,21502.0,21501.0,0.05295621]
[1674054806721,2.08348691,21502.0,21501.0,0.05195621]
[1674054806722,1.83668323,21502.0,21501.0,0.05195621]
[1674054806976,2.00348691,21502.0,21501.0,0.05195621]
[1674054807236,1.83668323,21502.0,21501.0,0.05195621]
[1674054807497,1.42340059,21502.0,21501.0,0.05195621]
[1674054807744,1.59020427,21502.0,21501.0,0.05295621]
[1674054808018,2.1945442,21502.0,21501.0,0.05295621]
[1674054808254,1.67021837,21502.0,21501.0,0.05295621]
[1674054808501,1.22431469,21502.0,21501.0,0.05295621]
[1674054809486,1.39111837,21502.0,21501.0,0.05295621]
[1674054809708,1.28030889,21502.0,21501.0,0.05295621]
[1674054809967,1.69359153,21502.0,21501.0,0.04795621]
[1674054810231,1.53703899,21502.0,21501.0,0.04795621]
[1674054810494,2.01529334,21502.0,21501.0,0.04795621]
[1674054810751,1.32497961,21502.0,21501.0,0.04795621]
[1674054811528,1.6020107,21502.0,21501.0,0.04795621]
[1674054812050,0.15,21501.0,21500.0,0.66059135]
[1674054812314,0.15,21501.0,21498.0,0.03171686]
[1674054812315,0.15,21500.0,21498.0,0.03171686]
[1674054812604,1.66119947,21499.0,21498.0,0.03171686]
[1674054812825,1.81119947,21499.0,21498.0,0.03171686]
[1674054813077,2.73392569,21499.0,21498.0,0.03171686]
[1674054813341,2.50134569,21499.0,21498.0,0.03171686]
[1674054813592,1.94522853,21499.0,21498.0,0.03171686]
[1674054813848,1.70020791,21499.0,21498.0,0.03171686]
[1674054814108,1.25412907,21499.0,21498.0,0.03171686]
[1674054814370,0.44222907,21499.0,21498.0,0.03171686]
[1674054814623,0.52322907,21499.0,21498.0,0.03271686]
[1674054814885,0.44222907,21499.0,21498.0,0.03171686]
[1674054815183,0.52322907,21499.0,21498.0,0.03271686]
[1674054815443,0.44222907,21499.0,21498.0,0.03171686]
[1674054815705,1.03942907,21499.0,21498.0,0.03271686]
[1674054816269,1.03942907,21499.0,21498.0,0.0259567]
[1674054816580,1.18187754,21499.0,21498.0,0.0259567]
[1674054816838,1.134894,21499.0,21498.0,0.0259567]
[1674054817108,1.78531257,21499.0,21498.0,0.01376493]
[1674054817366,2.0559105,21499.0,21498.0,0.01376493]
[1674054817891,2.006965,21499.0,21498.0,0.01376493]
[1674054818153,1.84072568,21499.0,21498.0,0.01376493]
[1674054818427,1.78550886,21499.0,21498.0,0.01376493]
[1674054818693,2.00716129,21499.0,21498.0,0.01376493]
[1674054819223,2.05748436,21499.0,21498.0,0.01376493]
[1674054819486,1.35180215,21499.0,21498.0,0.01376493]